Cogmind - Beta 15 @@@ ROGUE MODE // 2025.06.11 @ 22:36:52 Player: the Result: Destroyed by L-61 Swordsman with Power Sword Performance ------------- Evolutions (7) 3500 Regions Visited (25) 5000 Robots Destroyed (343) 1715 Value Destroyed (14348) 14348 Prototype IDs (50) 1000 Alien Tech Used (0) 0 Bonus (3199) 3199 TOTAL SCORE: 28762 Bonus ------- High Alert Combat Kills 703 Follower Combat Kills 155 Entered Garrisons 400 Entered DSFs 500 Aligned with FarCom 300 Acquired ECA 300 Met Warlord at Base 500 MAIN.C Attacked Warlord 500 Warlord Defense Kills 220 Friendly Fire -379 Cogmind --------- Core Integrity 0/1300 Matter 146/300 Energy 100/100 System Corruption 13% Temperature Cool (0) Movement Core (50) Location -3/Armory Parts ------- > --- POWER (2) -------- (None) > --- PROPULSION (6) --- (None) > --- UTILITY (8) ------ Advanced Signal Interpreter Advanced Melee Analysis Suite Graphene Brace > --- WEAPON (5) ------- (None) > --- INVENTORY (5) ---- Neutrino Core Quantum Capacitor Peak State ------------ > --- POWER ------------ Vortex Chain Reactor > --- PROPULSION ------- Armored Medium Treads Advanced Medium Treads Flexi-carbon Leg Myomer Leg > --- UTILITY ---------- Advanced Power Amplifier Improved Thermal Generator Improved Coolant Injector Huge Storage Unit Structural Scanner Advanced Targeting Computer Graphene Brace Advanced Thermal Shield > --- WEAPON ----------- Plasma Storm > --- INVENTORY -------- Neutrino Core Light Antimatter Reactor Improved Cryofiber Web Energy Well Encrypted Comm Array Advanced Melee Analysis Suite Improved Particle Charger Improved Transmission Jammer Advanced Reaction Control System Experimental Focal Shield Improved Dynamic Insulation System PSU Rigger Long-range Proton Cannon Disruptor Cannon Heavy Phase Cannon Vortex Driver Mini Smartbomb Launcher Thermoblaster Centrium Greatsword Centrium Greatsword [Rating: 136] Favorites ----------- Power Cooled Ion Engine Engine Cooled Ion Engine Power Core Neutrino Core Reactor Vortex Chain Reactor Propulsion Wheel Treads Armored Medium Treads Leg Flexi-carbon Leg Wheel Wheel Utility Huge Storage Unit Device Advanced Heat Sink Storage Huge Storage Unit Processor Advanced Targeting Computer Hackware Advanced System Shield Protection Improved Heavy Armor Plating Weapon Plasma Rifle Energy Gun Plasma Rifle Energy Cannon Heavy Particle Cannon Ballistic Gun Assault Rifle Ballistic Cannon Light Cannon Launcher Precision Rocket Launcher Special Weapon Mining Laser Impact Weapon Powered Hammer Slashing Weapon Centrium Greatsword Build | -11 -10 -9 -9 -9 -8 -8 -8 -8 -7 -7 -7 -7 -6 -6 -6 -5 -5 -5 -5 -4 -4 -4 -4 -3 -3 ------- Run | Yrd Mat Mat Min Exi Min Mat Gar Mat Fac Gar Fac DSF Fac Low Low Fac Upp Upp War Pro Fac Upp Upp Res Arm Slots Evolved 14 | . . 2 . . . 2 . . 2 . . . 2 . . 2 . . . . 2 . . 2 . Power 1 | . . . . . . . . . . . . . . . . . . . . . 1 . . . . Propulsion 4 | . . 1 . . . . . . 1 . . . . . . . . . . . . . . 2 . Utility 6 | . . 1 . . . 1 . . 1 . . . 2 . . 1 . . . . . . . . . Weapon 3 | . . . . . . 1 . . . . . . . . . 1 . . . . 1 . . . . Parts Attached 243 | 7 16 40 2 . 3 6 9 20 10 10 2 8 20 7 2 21 3 2 14 11 13 4 1 11 1 Power 26 | 1 2 6 . . . . . 2 . 2 . 1 1 3 . 2 . . . 3 1 . . 2 . Engine 17 | 1 2 6 . . . . . 2 . 2 . 1 1 2 . . . . . . . . . . . Core 6 | . . . . . . . . . . . . . . 1 . 2 . . . 2 . . . 1 . Reactor 3 | . . . . . . . . . . . . . . . . . . . . 1 1 . . 1 . Propulsion 52 | 2 5 11 . . 3 . 3 7 2 2 . 3 . . . 2 . . . 3 6 . . 3 . Treads 12 | 2 3 . . . . . . . . . . . . . . . . . . . 4 . . 3 . Leg 4 | . . . . . . . . . . 2 . . . . . . . . . . 2 . . . . Wheel 36 | . 2 11 . . 3 . 3 7 2 . . 3 . . . 2 . . . 3 . . . . . Hover . | . . . . . . . . . . . . . . . . . . . . . . . . . . Flight . | . . . . . . . . . . . . . . . . . . . . . . . . . . Utility 101 | 2 4 11 1 . . 1 6 7 4 6 1 3 12 4 2 9 3 1 9 4 3 2 1 5 . Device 49 | 1 . 5 . . . 1 3 2 1 4 . 2 8 4 1 4 1 1 2 3 3 1 . 2 . Storage 8 | 1 3 1 . . . . . . 1 . . . . . . . . . 1 . . . . 1 . Processor 13 | . . . . . . . 1 2 1 . 1 . 1 . 1 3 . . 1 . . . . 2 . Hackware 3 | . . 1 . . . . . . 1 . . . . . . 1 . . . . . . . . . Protection 28 | . 1 4 1 . . . 2 3 . 2 . 1 3 . . 1 2 . 5 1 . 1 1 . . Artifact . | . . . . . . . . . . . . . . . . . . . . . . . . . . Weapon 64 | 2 5 12 1 . . 5 . 4 4 . 1 1 7 . . 8 . 1 5 1 3 2 . 1 1 Energy Gun 25 | . 2 4 . . . 1 . 2 1 . . . 6 . . 4 . 1 2 . 2 . . . . Energy Cannon 20 | . . 5 . . . 3 . 1 2 . 1 . . . . 3 . . 2 1 . 2 . . . Ballistic Gun 4 | 2 . 1 . . . 1 . . . . . . . . . . . . . . . . . . . Ballistic Cannon 1 | . 1 . . . . . . . . . . . . . . . . . . . . . . . . Launcher 9 | . 1 1 1 . . . . 1 . . . 1 1 . . 1 . . 1 . . . . . 1 Special Weapon 2 | . 1 1 . . . . . . . . . . . . . . . . . . . . . . . Impact Weapon 1 | . . . . . . . . . 1 . . . . . . . . . . . . . . . . Slashing Weapon 2 | . . . . . . . . . . . . . . . . . . . . . 1 . . 1 . Piercing Weapon . | . . . . . . . . . . . . . . . . . . . . . . . . . . Special Melee Weapon . | . . . . . . . . . . . . . . . . . . . . . . . . . . Unidentified Prototypes 24 | . . 6 . . . 2 . 1 . . . . 3 . . 1 . . 7 . 4 . . . . Parts Lost 79 | . . 3 . . . . 3 11 4 5 . . 1 3 . 6 . . 1 13 7 5 1 . 16 Power 9 | . . . . . . . . 1 1 1 . . . . . 1 . . . 3 . . . . 2 Propulsion 29 | . . 3 . . . . 3 5 2 2 . . . . . 2 . . . 2 4 1 . . 5 Utility 23 | . . . . . . . . 2 . . . . 1 2 . 1 . . 1 4 3 3 1 . 5 Weapon 18 | . . . . . . . . 3 1 2 . . . 1 . 2 . . . 4 . 1 . . 4 Highest Loss Streak 16 | . . 1 . . . . 1 4 2 2 . . 1 1 . 4 . . 1 9 4 3 1 . 16 To Critical Strikes . | . . . . . . . . . . . . . . . . . . . . . . . . . . Average Backups 21 | 3 14 25 23 23 24 24 23 23 24 24 22 22 21 20 20 21 22 25 22 17 21 18 18 5 3 Power 2 | . 1 2 2 2 4 4 5 5 3 2 2 1 2 2 2 1 2 2 3 1 1 2 2 . 1 Propulsion 1 | 1 2 2 2 1 2 3 1 . . . . . 2 2 2 1 . . . . . . . . . Utility 10 | . 5 11 10 10 8 9 10 9 15 17 15 14 10 10 10 11 10 11 11 9 10 8 9 1 1 Weapon 6 | . 5 9 8 9 9 7 7 8 5 4 5 6 6 5 5 5 8 10 8 5 8 6 6 2 1 Tool/Special . | . . . . . . . . . . . . . . . . . . . . . . . . . . Unused Backups 96 | . 4 22 . . 3 5 9 7 4 8 3 9 4 . 1 3 . 1 6 . 3 . . 2 2 Power 35 | . . 3 . . . 2 7 7 3 4 2 4 1 . . . . . 1 . . . . . 1 Propulsion 1 | . . . . . 1 . . . . . . . . . . . . . . . . . . . . Utility 34 | . 2 6 . . 2 1 2 . 1 4 1 5 2 . 1 1 . . 2 . 1 . . 2 1 Weapon 26 | . 2 13 . . . 2 . . . . . . 1 . . 2 . 1 3 . 2 . . . . Tool/Special . | . . . . . . . . . . . . . . . . . . . . . . . . . . Average Slot Usage (%) 88 | . 95 95 100 100 99 99 99 94 98 90 92 82 79 85 85 83 88 88 87 70 67 60 60 77 78 Engine 5 | . 13 11 11 11 11 9 9 8 7 7 7 7 6 5 6 . . . . . . . . . . Core 1 | . . . . . . . . . . . . . . . . 4 5 5 5 3 . . . 3 3 Treads 2 | . 18 . . . . . . . . . . . . . . . . . . . 9 11 10 17 20 Leg 1 | . . . . . . . . . . 10 15 5 . . . . . . . . . . . . . Wheel 16 | . 9 31 33 33 33 27 26 24 29 16 15 15 13 13 13 10 11 11 11 7 4 . . . . Device 19 | . 7 14 11 11 10 17 10 17 17 16 15 15 24 29 30 22 23 24 28 20 31 23 17 27 26 Storage 7 | . 14 11 11 11 11 9 9 9 7 7 7 7 6 6 6 5 5 5 5 5 5 5 5 . . Processor 2 | . . . . . . . 8 5 . . . . . 2 1 5 5 5 5 5 5 5 5 8 9 Protection 5 | . 2 5 11 11 11 9 7 3 6 6 7 7 6 6 6 3 4 3 3 8 . . 6 . . Energy Gun 6 | . 8 4 . . . . . 4 7 5 . . 8 18 16 19 . 3 5 3 4 1 . . . Energy Cannon 11 | . . 15 11 22 18 26 27 19 9 16 18 22 6 . . 2 17 16 14 5 . 6 10 3 3 Ballistic Gun 1 | . 16 . . . . . . . . . . . . . . . . . . . . . . . . Launcher 1 | . . . 10 . 3 . . . 1 . . . . . 2 . 4 1 2 3 . . . . . Peak Build Rating 136 | 7 9 22 22 24 24 33 41 39 43 59 59 64 80 79 80 92 92 93 102 102 136 128 90 129 129 Average Rating 57 | 5 7 18 20 21 23 30 35 32 38 50 53 58 68 78 78 85 89 91 94 78 122 94 87 118 117 On Entrance 58 | . 7 9 20 20 24 24 31 37 31 38 58 53 55 78 79 78 88 91 93 100 77 128 90 88 129 Naked Turns . | . . . . . . . . . . . . . . . . . . . . . . . . . . Heaviest Build 228 | 13 148 228 104 106 106 116 116 116 115 132 133 138 143 134 134 141 149 149 149 151 158 158 155 97 52 Greatest Support 138 | 40 40 30 30 30 30 30 30 36 46 46 20 56 56 56 56 56 56 56 56 56 112 82 54 138 138 Greatest Overweight (x) 37 | 1 7 9 3 3 3 3 5 11 4 6 6 6 2 2 2 5 2 2 2 37 9 2 2 3 . Average Overweight (x) 2 | . 1 3 3 3 3 3 3 3 2 5 6 3 1 1 2 2 2 2 2 3 3 1 2 . . Largest Inventory Capacity 30 | 8 30 30 25 25 25 25 25 25 25 25 25 25 25 25 25 25 25 25 25 25 25 25 25 25 5 Average Capacity 24 | 7 18 26 25 25 25 25 25 25 25 25 25 25 25 25 25 25 25 25 25 25 25 25 25 6 5 Most Carried 30 | 4 22 30 25 25 25 25 25 25 25 25 25 25 25 25 25 25 25 25 25 25 25 24 22 23 5 Average Carried 22 | 3 14 25 24 24 24 24 23 23 24 24 24 24 24 24 24 23 22 25 23 22 22 21 21 5 4 Final Capacity 30 | 8 30 25 25 25 25 25 25 25 25 25 25 25 25 25 25 25 25 25 25 25 25 25 25 5 5 Final Carried 25 | 4 22 25 25 25 25 25 25 25 25 25 25 25 24 24 25 22 25 25 25 22 24 21 22 5 3 Class Distribution -------------------- 22% | Scavenger-Skirmisher 18% | Mutant 15% | Scavenger-Mutant 11% | Gunner 10% | Skirmisher 9% | Tank 4% | Hauler-Mutant Dominant Class ---------------- Mutant | -10/Materials Scavenger-Mutant | -9/Materials Mutant | -9/Mines Mutant | -9/Exiles Mutant | -8/Mines Scavenger-Skirmisher | -8/Materials Scavenger-Skirmisher | -8/Garrison Scavenger-Skirmisher | -8/Materials Scavenger-Skirmisher | -7/Factory Scavenger-Skirmisher | -7/Garrison Scavenger-Mutant | -7/Factory Skirmisher | -7/DSF Mutant | -6/Factory Tank | -6/Lower Caves Tank | -6/Lower Caves Skirmisher | -5/Factory Gunner | -5/Upper Caves Gunner | -5/Upper Caves Gunner | -5/Warlord Mutant | -4/Proximity Caves Infiltrator-Skirmisher | -4/Factory Scavenger-Mutant | -4/Upper Caves Mutant | -4/Upper Caves Infiltrator-Gladiator | -3/Research Infiltrator-Gladiator | -3/Armory Resources | -11 -10 -9 -9 -9 -8 -8 -8 -8 -7 -7 -7 -7 -6 -6 -6 -5 -5 -5 -5 -4 -4 -4 -4 -3 -3 ----------- Run | Yrd Mat Mat Min Exi Min Mat Gar Mat Fac Gar Fac DSF Fac Low Low Fac Upp Upp War Pro Fac Upp Upp Res Arm Matter Collected 7200 | 300 606 1061 40 . 91 109 295 584 299 361 . 240 431 436 99 567 434 143 267 508 176 121 2 30 . Remotely . | . . . . . . . . . . . . . . . . . . . . . . . . . . Salvage Created 13494 | 46 752 1778 . . 48 210 881 1259 261 783 . 486 942 478 176 958 88 279 15 720 2657 280 71 30 296 Parts 645 | 6 55 110 . . 9 5 42 62 8 32 . 37 30 30 2 33 13 4 . 29 104 14 4 2 14 Haulers Intercepted 15 | . 2 6 . . . 2 . 2 . . . 1 1 . . . . . . . 1 . . . . Recyclers Shooed 3 | . 2 1 . . . . . . . . . . . . . . . . . . . . . . . Parts Field Recycled . | . . . . . . . . . . . . . . . . . . . . . . . . . . Retrieved Matter . | . . . . . . . . . . . . . . . . . . . . . . . . . . Parts Self-Destructed 76 | . . . . . . . . . . . . . . 26 1 . 8 4 . 21 . 12 4 . . Prevented 1 | . . . . . . . . . . . . . . . . . . . . 1 . . . . . Kills | -11 -10 -9 -9 -9 -8 -8 -8 -8 -7 -7 -7 -7 -6 -6 -6 -5 -5 -5 -5 -4 -4 -4 -4 -3 -3 ------- Run | Yrd Mat Mat Min Exi Min Mat Gar Mat Fac Gar Fac DSF Fac Low Low Fac Upp Upp War Pro Fac Upp Upp Res Arm Combat Hostiles Destroyed 256 | . 14 31 . . . 1 22 25 5 22 . 8 13 15 2 18 13 7 1 19 31 4 1 . 4 Melee 3 | . . . . . . . . . . . . . . . . . . . . . . . . . 3 Guns 54 | . 7 5 . . . . . 4 1 5 . . 7 9 2 12 . . 1 1 . . . . . Cannons 82 | . . 22 . . . 1 21 9 4 5 . 7 2 . . 4 . 2 . 3 . 1 1 . . AOE 96 | . 7 . . . . . . 9 . 11 . 1 . 4 . 2 13 4 . 12 29 3 . . 1 Classes Destroyed 21 | 1 7 2 . . . . 2 3 1 . . 2 . 2 . . . . 1 . . . . . . Worker 22 | . 1 6 . . 1 . . 5 3 . . . 2 . . 1 . . . . 3 . . . . Builder 16 | . 4 5 . . 2 . . 1 . . . . 1 . . . . . . . 2 . . 1 . Tunneler 6 | 3 2 . . . . . . 1 . . . . . . . . . . . . . . . . . Hauler 15 | . 2 6 . . . 2 . 2 . . . 1 1 . . . . . . . 1 . . . . Recycler 8 | . 3 . . . . 1 . 2 . . . . . . . . . . . . 2 . . . . Minesweeper 1 | . . . . . . . . . . . . . . 1 . . . . . . . . . . . Mechanic 4 | . . . . . . . 2 1 . . . . . . . . . . . . 1 . . . . Operator 3 | . . 2 . . . . . . 1 . . . . . . . . . . . . . . . . Watcher 11 | . 3 4 . . . . . 1 . 1 . . 1 . . 1 . . . . . . . . . Swarmer 75 | . 9 7 . . . . 10 3 2 10 . . . 11 . 2 13 . . 6 2 . . . . Grunt 87 | . 5 15 . . . . 6 12 . 8 . 3 6 2 2 . . 1 . 7 14 3 . . 3 Brawler 6 | . . . . . . . . 2 . 2 . . . . . . . 2 . . . . . . . Duelist 5 | . . . . . . . . . . . . 1 . 1 . . . 1 . . 2 . . . . Protector 3 | . . . . . . . . 2 . . . . . . . . . . . . 1 . . . . Sentry 25 | . . 9 . . . 1 4 4 . 2 . . 1 . . 1 . 1 . 1 . . 1 . . Specialist 7 | . . . . . . . . . . . . 2 2 . . . . . . . 2 . . . 1 Hunter 18 | . . . . . . . 2 1 . . . . . . . 4 . 2 . 2 7 . . . . Programmer 24 | . . . . . . . . . 3 . . 1 3 . . 11 . . . 3 2 1 . . . Heavy 4 | . . . . . . . . 1 . . . 1 1 . . . . . . . 1 . . . . Behemoth 1 | . . . . . . . . . . . . . . 1 . . . . . . . . . . . Striker 1 | . . . . . . . . . . . . . . . . . . . 1 . . . . . . Packrat 1 | . . . . . . . . . . . . . . . 1 . . . . . . . . . . Savage 1 | . . . . . . . . . . . . . . . . 1 . . . . . . . . . Best Kill Streak 15 | 1 6 7 . . 2 2 4 9 2 11 . 5 6 7 2 4 5 5 1 9 15 3 1 1 4 Combat Bots Only 12 | . 4 4 . . . 1 4 9 2 11 . 4 6 7 2 4 5 5 1 9 12 3 1 . 4 Max Kills in Single Turn 3 | 1 2 2 . . 1 2 2 3 1 3 . 1 1 3 1 2 3 2 1 3 3 2 1 1 1 Gunslinging 1 | . . . . . . . . . . . . . . 1 . . . . . . . . . . . Exploded 3 | . 2 . . . . . . 3 . 3 . 1 . 3 . 2 3 2 . 3 3 2 . . 1 Melee 1 | . . . . . . . . . . . . . . . . . . . . . . . . . 1 Uniques/NPCs Destroyed . | . . . . . . . . . . . . . . . . . . . . . . . . . . Combat | -11 -10 -9 -9 -9 -8 -8 -8 -8 -7 -7 -7 -7 -6 -6 -6 -5 -5 -5 -5 -4 -4 -4 -4 -3 -3 -------- Run | Yrd Mat Mat Min Exi Min Mat Gar Mat Fac Gar Fac DSF Fac Low Low Fac Upp Upp War Pro Fac Upp Upp Res Arm Hostile Shots Fired 1433 | . 93 130 . . . 2 75 100 34 72 . 53 101 51 9 100 22 35 9 198 93 49 3 . 204 Missed 437 | . 33 34 . . . . 17 23 13 24 . 16 35 19 2 32 10 10 2 58 48 10 . . 51 Hits 996 | . 60 96 . . . 2 58 77 21 48 . 37 66 32 7 68 12 25 7 140 45 39 3 . 153 Melee 8 | . . . . . . . . . . 1 . 1 . 1 . . . . . . . . . . 5 Projectile 988 | . 60 96 . . . 2 58 77 21 47 . 36 66 31 7 68 12 25 7 140 45 39 3 . 148 AOE 1 | . . . . . . . . . . . . . . . . 1 . . . . . . . . . Critical Strikes 40 | . . 4 . . . . 1 5 . 2 . 4 4 1 . 4 . . . 5 1 . . . 9 Actively Blocked 17 | . . . . . . . . . . . . 4 2 1 . . . . . . 1 . . . 9 Part Disruptions 5 | . . . . . . . . 1 . . . . . . . 1 . . 1 1 . 1 . . . Damage Taken 19146 | . 586 1228 . . . 30 609 1366 453 760 . 865 1180 652 132 1725 178 490 153 2261 1400 1049 73 . 3956 Core 3285 | . 73 254 . . . . 81 255 34 43 . 39 130 104 . 196 27 34 . 271 234 196 . . 1314 Absorbed by Shields 687 | . . . . . . . 32 . . . . . . . . 13 . . 73 430 139 . . . . Ignored by Resistances 520 | . . . . . . . . . 15 41 . . 4 . . 47 . . . . 190 223 . . . Regen/Repaired (Parts) 696 | . 43 274 . . . 19 . 163 . . . . . . . 47 . . 150 . . . . . . Core Remaining (%) 63 | 100 70 . . . 36 . . 38 . . . 83 . . 72 . . . . 47 . . 62 . . Volleys Fired 768 | 5 66 165 . . 5 19 68 96 15 46 3 28 41 31 10 56 9 14 2 40 30 13 2 . 4 Largest 4 | 2 2 2 . . 2 3 3 3 3 3 1 3 3 3 3 4 1 4 4 4 1 2 2 . 1 Hottest 527 | 40 100 150 . . 150 240 240 240 220 220 65 215 230 225 225 450 80 367 365 527 300 300 180 . 46 Shots Fired 1550 | 10 117 295 . . 10 35 139 195 32 89 3 75 119 73 29 163 9 35 5 58 30 21 4 . 4 Gun 626 | 10 103 40 . . . . . 41 12 22 . . 107 70 28 132 . 3 1 20 30 7 . . . Cannon 815 | . . 225 . . 10 35 139 138 20 58 3 73 12 . . 30 . 27 4 23 . 14 4 . . Launcher 74 | . 8 1 . . . . . 16 . 9 . 2 . 3 1 1 9 5 . 15 . . . . 4 Special 35 | . 6 29 . . . . . . . . . . . . . . . . . . . . . . . Kinetic 102 | 10 92 . . . . . . . . . . . . . . . . . . . . . . . . Thermal 1364 | . 17 294 . . 10 35 139 179 32 80 3 73 119 70 28 162 . 30 3 35 30 21 4 . . Explosive 73 | . 8 1 . . . . . 16 . 9 . 2 . 3 1 1 9 5 . 14 . . . . 4 Electromagnetic 6 | . . . . . . . . . . . . . . . . . . . 1 5 . . . . . Entropic 5 | . . . . . . . . . . . . . . . . . . . 1 4 . . . . . Robot Hit Streak 26 | 2 7 9 . . 7 7 11 19 8 16 . 18 14 9 7 19 . 8 9 10 26 6 8 . . Robot Miss Streak 6 | 4 4 3 . . 2 . 4 4 3 2 . 2 6 5 4 5 . 4 . 3 5 3 . . . Penetration Max . | . . . . . . . . . . . . . . . . . . . . . . . . . . Secondary Targets 11 | . . 1 . . . . . . . . . . 5 2 1 2 . . . . . . . . . Max Gunslinging Chain 1 | . . 1 . . . . . . . . . . 1 1 1 1 . . . . . . . . . Shots Hit Robots 848 | 4 60 150 . . 6 7 65 89 25 44 . 47 85 43 20 94 . 20 1 35 25 12 4 1 11 Core Hits 629 | 3 35 54 . . 2 4 30 61 12 49 . 18 29 23 19 66 13 18 1 33 124 15 2 . 18 Critical Kills 6 | . . 2 . . . . 1 2 . . . . . . . . . . . 1 . . . . . Critical Parts Destroyed 2 | . . . . . . . . . 1 . . . 1 . . . . . . . . . . . . Critical Strikes 41 | . . 4 . . . . 1 5 1 . . . 8 8 1 5 . . 1 2 . . . . 5 Burn 28 | . . 2 . . . . . 3 . . . . 7 8 1 5 . . 1 1 . . . . . Meltdown 6 | . . 2 . . . . 1 2 . . . . . . . . . . . 1 . . . . . Smash 2 | . . . . . . . . . 1 . . . 1 . . . . . . . . . . . . Sever 5 | . . . . . . . . . . . . . . . . . . . . . . . . . 5 Melee Attacks 74 | . . . . . . . . . 20 . 4 . 24 . . . . . . . . . . 6 20 Impact 48 | . . . . . . . . . 20 . 4 . 24 . . . . . . . . . . . . Slashing 26 | . . . . . . . . . . . . . . . . . . . . . . . . 6 20 Piercing . | . . . . . . . . . . . . . . . . . . . . . . . . . . Sneak Attacks 7 | . . . . . . . . . 3 . . . 3 . . . . . . . . . . 1 . Combat Hostiles . | . . . . . . . . . . . . . . . . . . . . . . . . . . Follow-up Attacks 2 | . . . . . . . . . . . . . . . . . . . . . . . . . 2 Damage Inflicted 35748 | 51 1223 3483 . . 150 205 1740 3510 813 1913 . 1476 2184 1384 514 3083 1280 1374 51 2767 5901 863 140 129 1514 Guns 8403 | 51 669 308 . . . . . 481 288 456 . . 1785 1015 514 2174 . 49 26 340 224 23 . . . Cannons 11130 | . . 3121 . . 150 205 1740 1601 306 539 . 1271 124 . . 451 . 465 25 736 . 256 140 . . Explosions 14803 | . 554 54 . . . . . 1428 . 918 . 205 . 369 . 458 1280 860 . 1691 5668 584 . . 734 Melee 1403 | . . . . . . . . . 219 . . . 275 . . . . . . . . . . 129 780 Ramming 9 | . . . . . . . . . . . . . . . . . . . . . 9 . . . . Kinetic 660 | 51 609 . . . . . . . . . . . . . . . . . . . . . . . . Thermal 25006 | . 60 3429 . . 150 205 1740 2082 594 995 . 1271 1909 1015 514 2805 . 514 51 777 5892 863 140 . . Explosive 8188 | . 554 54 . . . . . 1428 . 918 . 205 . 369 . 95 1280 860 . 1691 . . . . 734 Electromagnetic 300 | . . . . . . . . . . . . . . . . 183 . . . 117 . . . . . Impact 494 | . . . . . . . . . 219 . . . 275 . . . . . . . . . . . . Slashing 909 | . . . . . . . . . . . . . . . . . . . . . . . . 129 780 Piercing . | . . . . . . . . . . . . . . . . . . . . . . . . . . Entropic 182 | . . . . . . . . . . . . . . . . . . . . 182 . . . . . Highest Corruption 13 | . . . . . . . . . . . . . 4 4 4 9 9 9 10 4 1 9 9 . 13 Average Corruption 5 | . . . . . . . . . . . . . 2 4 4 5 9 9 9 2 1 6 9 . 7 Corruption Purged . | . . . . . . . . . . . . . . . . . . . . . . . . . . Corruption Blocked . | . . . . . . . . . . . . . . . . . . . . . . . . . . Effects 241 | . . . . . . . . . . . . . 18 32 19 40 46 24 2 14 6 31 7 . 2 Message Errors 53 | . . . . . . . . . . . . . 4 6 10 7 15 4 . 1 . 3 2 . 1 Matter Fused 64 | . . . . . . . . . . . . . 4 9 2 16 12 5 1 3 1 10 1 . . Heat Flow Errors 33 | . . . . . . . . . . . . . 2 6 4 4 6 3 1 2 1 2 2 . . Energy Discharges 28 | . . . . . . . . . . . . . 1 4 1 1 4 4 . 4 2 7 . . . Parts Rejected 1 | . . . . . . . . . . . . . . . . . . . . 1 . . . . . Parts Fused 5 | . . . . . . . . . . . . . . . . . 1 . . 1 . 2 1 . . Data Loss (minor) 25 | . . . . . . . . . . . . . 3 3 . 4 3 4 . 2 . 4 1 . 1 Data Loss (major) 10 | . . . . . . . . . . . . . 1 1 1 1 4 2 . . . . . . . Misfires 7 | . . . . . . . . . . . . . 1 . 1 2 . 1 . . . 2 . . . Alerts 11 | . . . . . . . . . . . . . 1 3 . 2 1 1 . . 2 1 . . . Weapon Failures 4 | . . . . . . . . . . . . . 1 . . 3 . . . . . . . . . Overload Shots 17 | . . . . . . . . . . . . . . . . 17 . . . . . . . . . Overflow Damage 1327 | . 13 89 . . 25 5 58 67 159 11 . 5 235 . . 131 171 . . 139 74 19 . 89 37 Projectiles 315 | . . 89 . . 25 5 58 9 . 9 . 5 . . . . . . . 98 . 17 . . . Explosions 492 | . 13 . . . . . . 58 . 2 . . . . . 131 171 . . 41 74 2 . . . Melee 520 | . . . . . . . . . 159 . . . 235 . . . . . . . . . . 89 37 Knockbacks 4 | . . . . . . . . . 3 . . . 1 . . . . . . . . . . . . Impact 4 | . . . . . . . . . 3 . . . 1 . . . . . . . . . . . . Kinetic . | . . . . . . . . . . . . . . . . . . . . . . . . . . Secondary . | . . . . . . . . . . . . . . . . . . . . . . . . . . Self-Inflicted Damage 1222 | . . . . . . . . 30 . 89 . . . . . 136 . 6 . 64 533 331 . . 33 Shots 62 | . . . . . . . . 1 . 4 . . . . . 3 . 1 . 2 28 22 . . 1 Rammed 1 | . . . . . . . . . . . . . . . . . . . . . 1 . . . . Targets Rammed 1 | . . . . . . . . . . . . . . . . . . . . . 1 . . . . Kicked . | . . . . . . . . . . . . . . . . . . . . . . . . . . Crushed . | . . . . . . . . . . . . . . . . . . . . . . . . . . Highest Temperature 550 | . 60 333 . . 96 258 414 491 165 261 . 199 198 179 207 550 30 391 4 . 222 329 54 . . Average Temperature 101 | . 20 79 . . 37 78 142 110 55 88 . 117 100 64 127 183 24 233 4 . 109 153 25 . . Received Heat Transfer 2954 | . 99 525 . . . 9 81 423 18 294 . 144 246 45 63 18 . 36 9 270 113 45 . . 516 Effects 19 | . . 1 . . . . 3 7 . . . . . . . 7 . 1 . . . . . . . Shutdowns 4 | . . . . . . . 1 1 . . . . . . . 1 . 1 . . . . . . . Energy Bleed 4 | . . 1 . . . . 1 1 . . . . . . . 1 . . . . . . . . . Interference 8 | . . . . . . . . 3 . . . . . . . 5 . . . . . . . . . Matter Decay 1 | . . . . . . . . 1 . . . . . . . . . . . . . . . . . Short Circuit 1 | . . . . . . . . 1 . . . . . . . . . . . . . . . . . Damage (minor) 1 | . . . . . . . 1 . . . . . . . . . . . . . . . . . . Siege Activations . | . . . . . . . . . . . . . . . . . . . . . . . . . . Martial Activations . | . . . . . . . . . . . . . . . . . . . . . . . . . . Shielding Activations . | . . . . . . . . . . . . . . . . . . . . . . . . . . Robots Disrupted . | . . . . . . . . . . . . . . . . . . . . . . . . . . Combat Hostiles . | . . . . . . . . . . . . . . . . . . . . . . . . . . Robots Corrupted 3 | . . . . . . . . . 2 . . . 1 . . . . . . . . . . . . Combat Hostiles . | . . . . . . . . . . . . . . . . . . . . . . . . . . Parts Fried 7 | . . . . . . . . . 4 . . . 3 . . . . . . . . . . . . Impact Corruptions 11 | . . . . . . . . . 6 . . . 5 . . . . . . . . . . . . Robots Melted 21 | . . 4 . . . . 1 3 . 1 . . 4 2 . . . 1 . 3 2 . . . . Combat Hostiles 21 | . . 4 . . . . 1 3 . 1 . . 4 2 . . . 1 . 3 2 . . . . Parts Melted 129 | . . 20 . . . . 4 18 6 6 . . 18 5 2 16 . 3 . 2 28 1 . . . Heat Transferred 43053 | . 173 5837 . . 222 400 3375 4550 984 1787 . 1813 4823 2865 810 4290 . 735 123 1333 7741 1044 148 . . Parts Sabotaged . | . . . . . . . . . . . . . . . . . . . . . . . . . . Parts Stolen . | . . . . . . . . . . . . . . . . . . . . . . . . . . Parts Stripped . | . . . . . . . . . . . . . . . . . . . . . . . . . . Power Chain Reactions . | . . . . . . . . . . . . . . . . . . . . . . . . . . Alert | -11 -10 -9 -9 -9 -8 -8 -8 -8 -7 -7 -7 -7 -6 -6 -6 -5 -5 -5 -5 -4 -4 -4 -4 -3 -3 ------- Run | Yrd Mat Mat Min Exi Min Mat Gar Mat Fac Gar Fac DSF Fac Low Low Fac Upp Upp War Pro Fac Upp Upp Res Arm Maximum Alert Level 3 | . 1 1 . . . . 3 2 1 3 2 2 1 . . 1 . . . . 3 . . . . Low Security (%) 61 | 100 77 83 100 . 100 100 19 8 89 9 . . 90 . . 87 . . . . 44 . . 100 100 Level 1 15 | . 22 16 . . . . 27 33 10 10 29 31 9 . . 12 . . . . 8 . . . . Level 2 15 | . . . . . . . 22 57 . 36 70 68 . . . . . . . . 34 . . . . Level 3 6 | . . . . . . . 31 . . 43 . . . . . . . . . . 12 . . . . Level 4 . | . . . . . . . . . . . . . . . . . . . . . . . . . . Level 5 . | . . . . . . . . . . . . . . . . . . . . . . . . . . High Security . | . . . . . . . . . . . . . . . . . . . . . . . . . . Max Security . | . . . . . . . . . . . . . . . . . . . . . . . . . . Sterilizations 1 | . . . . . . . . . . . . 1 . . . . . . . . . . . . . Peak Influence 1051 | 5 268 267 65 . 6 27 993 639 276 1051 551 483 264 . . 338 . . . . 730 . . 15 192 Initial 551 | . . 49 65 . . . 1 483 276 35 551 239 253 . . . . . . . . . . . . Average 219 | 1 120 123 8 . . 3 488 414 66 621 445 416 57 . . 71 . . . . 335 . . . 32 Influence Increases 9646 | 15 504 1222 . . 19 90 1062 1032 294 1066 5 244 452 345 40 690 290 150 168 410 1042 145 20 26 315 Destroy 0b10 Robot/C 5260 | . 280 620 . . . 20 500 460 100 440 . 160 260 300 40 360 260 140 160 380 600 80 20 . 80 Destroy 0b10 Robot/NC 450 | 15 75 115 . . 15 15 10 75 20 5 . 10 25 5 . 10 . . . . 50 . . 5 . Destroy Leader 928 | . 60 180 . . . 14 20 126 40 30 . 30 84 40 . 102 30 10 . 30 112 20 . . . Allied During Kill 19 | . . . . . . . 11 . . . . . . . . . . . 8 . . . . . . Successful Hack 253 | . 27 54 . . . 6 21 1 58 . . . 60 . . 26 . . . . . . . . . Disable Machine 555 | . 15 75 . . . 15 45 90 15 75 . 15 . . . 90 . . . . 90 . . 15 15 Anti-Garrison Action 1050 | . . . . . . . 300 150 . 450 . . . . . . . . . . 150 . . . . Destroy Structure 651 | . 17 103 . . 4 20 50 100 16 51 5 14 23 . . 102 . . . . 40 . . 6 100 Partial Spotted 15 | . . . . . . . . 15 . . . . . . . . . . . . . . . . . Lose Combat Pursuer 465 | . 30 75 . . . . 105 15 45 15 . 15 . . . . . . . . . 45 . . 120 Influence Decreases 9539 | 15 386 1172 168 . 19 87 72 1416 852 66 714 103 716 564 40 366 607 157 83 495 344 767 96 26 208 Entered New Map 2430 | . . 69 103 . . . 2 510 333 16 500 103 230 82 . . 121 2 . 85 . 259 15 . . Time Decay 5619 | 15 386 613 65 . 19 87 . 626 489 . 214 . 476 452 40 306 486 155 23 280 284 458 71 26 48 Lost Part 750 | . . 30 . . . . 30 110 30 50 . . 10 30 . 60 . . . 120 60 50 10 . 160 Lost Ally 140 | . . 10 . . . . 40 20 . . . . . . . . . . 60 10 . . . . . Purge Threat 600 | . . 450 . . . . . 150 . . . . . . . . . . . . . . . . . Squads Dispatched 51 | . 1 3 . . . . . 8 5 . 3 2 9 . . 7 . 1 . . 10 . . . 2 Investigation 7 | . . 2 . . . . . . 1 . . . 2 . . . . . . . 2 . . . . Extermination 15 | . . . . . . . . . 3 . 1 . 4 . . 5 . . . . 2 . . . . Reinforcement 23 | . 1 1 . . . . . 6 1 . 2 2 3 . . 2 . . . . 3 . . . 2 Assault 6 | . . . . . . . . 2 . . . . . . . . . 1 . . 3 . . . . Garrison . | . . . . . . . . . . . . . . . . . . . . . . . . . . Intercept . | . . . . . . . . . . . . . . . . . . . . . . . . . . Searches Triggered . | . . . . . . . . . . . . . . . . . . . . . . . . . . Construction Impeded 3 | . . . . . . . . 1 . . . . . . . 1 . . . . 1 . . . . Haulers Reinforced . | . . . . . . . . . . . . . . . . . . . . . . . . . . Active Scanning Responses . | . . . . . . . . . . . . . . . . . . . . . . . . . . Cargo Convoy Interrupts . | . . . . . . . . . . . . . . . . . . . . . . . . . . Stealth | -11 -10 -9 -9 -9 -8 -8 -8 -8 -7 -7 -7 -7 -6 -6 -6 -5 -5 -5 -5 -4 -4 -4 -4 -3 -3 --------- Run | Yrd Mat Mat Min Exi Min Mat Gar Mat Fac Gar Fac DSF Fac Low Low Fac Upp Upp War Pro Fac Upp Upp Res Arm Distress Signals 12 | . . 4 . . . . . 3 1 . . . . . . 2 . . 1 . 1 . . . . Communications Jammed 25 | . . . . . . . . . 11 . . . . . . 2 . . . . 12 . . . . Distress Signals 25 | . . . . . . . . . 11 . . . . . . 2 . . . . 12 . . . . Times Spotted 350 | . 25 45 . . . 1 34 39 10 19 . 12 15 15 2 25 7 8 14 18 33 8 1 . 19 Peak Tracking Total 11 | . 6 5 . . . 1 5 6 4 7 . 4 3 5 3 5 5 5 8 7 11 3 1 . 11 Tactical Retreats 16 | . 2 3 . . . . 2 1 1 1 . 1 . . . . . . . . . 3 . . 2 Traps | -11 -10 -9 -9 -9 -8 -8 -8 -8 -7 -7 -7 -7 -6 -6 -6 -5 -5 -5 -5 -4 -4 -4 -4 -3 -3 ------- Run | Yrd Mat Mat Min Exi Min Mat Gar Mat Fac Gar Fac DSF Fac Low Low Fac Upp Upp War Pro Fac Upp Upp Res Arm Traps Triggered 28 | . 2 2 1 . . . 5 . 4 5 . . 1 . . 4 . . 1 . 3 . . . . Indirectly . | . . . . . . . . . . . . . . . . . . . . . . . . . . Trap Hack Attempts . | . . . . . . . . . . . . . . . . . . . . . . . . . . Triggered . | . . . . . . . . . . . . . . . . . . . . . . . . . . Disarmed . | . . . . . . . . . . . . . . . . . . . . . . . . . . Reprogrammed . | . . . . . . . . . . . . . . . . . . . . . . . . . . Reused . | . . . . . . . . . . . . . . . . . . . . . . . . . . Traps Extracted . | . . . . . . . . . . . . . . . . . . . . . . . . . . Installed 1 | . . . 1 . . . . . . . . . . . . . . . . . . . . . . Triggered . | . . . . . . . . . . . . . . . . . . . . . . . . . . Most Traps Carried 2 | . . . 2 2 . . . . . . . . . 1 1 1 . . . . . . . . . Objects Rigged 29 | . . . . . . . 12 6 1 4 . 6 . . . . . . . . . . . . . Exploded 20 | . . . . . . . 6 7 1 4 . 2 . . . . . . . . . . . . . Time Bombs Activated 2 | . . . . . . . . . 1 1 . . . . . . . . . . . . . . . Exploded 2 | . . . . . . . . . 1 1 . . . . . . . . . . . . . . . Machines | -11 -10 -9 -9 -9 -8 -8 -8 -8 -7 -7 -7 -7 -6 -6 -6 -5 -5 -5 -5 -4 -4 -4 -4 -3 -3 ---------- Run | Yrd Mat Mat Min Exi Min Mat Gar Mat Fac Gar Fac DSF Fac Low Low Fac Upp Upp War Pro Fac Upp Upp Res Arm Machines Disabled 48 | . 1 5 . . . 1 7 7 1 8 . 1 . . . 6 . 1 1 . 7 . . 1 1 Max in Single Turn 6 | . 1 1 . . . 1 1 1 1 2 . 1 . . . 3 . 1 1 . 6 . . 1 1 Garrison Access 2 | . . . . . . . . 1 . . . . . . . . . . . . 1 . . . . Garrison Relay 7 | . . . . . . . 4 . . 3 . . . . . . . . . . . . . . . Phase Generator 1 | . . . . . . . . . . 1 . . . . . . . . . . . . . . . Machines Repaired . | . . . . . . . . . . . . . . . . . . . . . . . . . . Machines Dismantled . | . . . . . . . . . . . . . . . . . . . . . . . . . . Machines Sabotaged . | . . . . . . . . . . . . . . . . . . . . . . . . . . Overloaded Fab Kills . | . . . . . . . . . . . . . . . . . . . . . . . . . . Hacking | -11 -10 -9 -9 -9 -8 -8 -8 -8 -7 -7 -7 -7 -6 -6 -6 -5 -5 -5 -5 -4 -4 -4 -4 -3 -3 --------- Run | Yrd Mat Mat Min Exi Min Mat Gar Mat Fac Gar Fac DSF Fac Low Low Fac Upp Upp War Pro Fac Upp Upp Res Arm Machines Accessed 86 | . 8 14 . 2 . 4 5 8 10 1 3 . 13 . . 10 . 1 5 . 2 . . . . Terminals 50 | . 6 10 . . . 1 5 6 6 1 1 . 8 . . 5 . . . . 1 . . . . Fabricators 5 | . . . . . . . . . . . 1 . 2 . . 2 . . . . . . . . . Repair Stations 11 | . 1 2 . . . 1 . 2 2 . . . 1 . . 2 . . . . . . . . . Recycling Units 1 | . 1 . . . . . . . . . . . . . . . . . . . . . . . . Scanalyzers 6 | . . 2 . . . 1 . . 1 . 1 . 1 . . . . . . . . . . . . Garrison Access 5 | . . . . . . 1 . . 1 . . . 1 . . 1 . . . . 1 . . . . Total Hacks 226 | . 17 60 . 5 . 10 9 30 25 2 4 . 26 . . 22 . 1 9 . 6 . . . . Successful 125 | . 9 44 . 5 . 6 3 11 12 . 4 . 13 . . 7 . 1 9 . 1 . . . . Failed 101 | . 8 16 . . . 4 6 19 13 2 . . 13 . . 15 . . . . 5 . . . . Catastrophic 22 | . 1 2 . . . . 2 2 1 . . . 4 . . 8 . . . . 2 . . . . Database Lockouts . | . . . . . . . . . . . . . . . . . . . . . . . . . . Manual 77 | . 13 17 . 1 . 3 . 10 11 . . . 9 . . 9 . . . . 4 . . . . Terminals 116 | . 14 28 . . . 3 9 16 15 2 1 . 13 . . 11 . . . . 4 . . . . Fabricators 9 | . . . . . . . . . . . 1 . 5 . . 3 . . . . . . . . . Repair Stations 43 | . 2 11 . . . 3 . 14 5 . . . 4 . . 4 . . . . . . . . . Recycling Units 1 | . 1 . . . . . . . . . . . . . . . . . . . . . . . . Scanalyzers 31 | . . 21 . . . 2 . . 4 . 2 . 2 . . . . . . . . . . . . Garrison Access 11 | . . . . . . 2 . . 1 . . . 2 . . 4 . . . . 2 . . . . Terminal Hacks 38 | . 2 10 . 5 . . 3 2 . . 1 . 3 . . 2 . 1 9 . . . . . . Record 11 | . . . . 4 . . . . . . . . . . . . . . 7 . . . . . . Part Schematic 1 | . 1 . . . . . . . . . . . . . . . . . . . . . . . . Robot Analysis 1 | . . 1 . . . . . . . . . . . . . . . . . . . . . . . Prototype ID Bank 1 | . . 1 . . . . . . . . . . . . . . . . . . . . . . . Open Door 4 | . . . . . . . 1 . . . . . . . . . . 1 2 . . . . . . Open DSF 2 | . . . . . . . . . . . 1 . 1 . . . . . . . . . . . . Branch Access Points 1 | . . . . . . . . . . . . . 1 . . . . . . . . . . . . Repair Station Index 1 | . . 1 . . . . . . . . . . . . . . . . . . . . . . . Alert Level 2 | . . 1 . . . . . . . . . . . . . 1 . . . . . . . . . Unreport Threat 4 | . . 3 . . . . . 1 . . . . . . . . . . . . . . . . . Transport Status 1 | . . 1 . . . . . . . . . . . . . . . . . . . . . . . Hauler Manifests 1 | . . 1 . . . . . . . . . . . . . . . . . . . . . . . Zone Layout 5 | . 1 1 . . . . . 1 . . . . 1 . . 1 . . . . . . . . . Garrison Registry 1 | . . . . . . . 1 . . . . . . . . . . . . . . . . . . Patrol Navigation 1 | . . . . . . . 1 . . . . . . . . . . . . . . . . . . Proto ID Catalog 1 | . . . . 1 . . . . . . . . . . . . . . . . . . . . . Fabricator Hacks 6 | . . . . . . . . . . . 1 . 3 . . 2 . . . . . . . . . Network Status 3 | . . . . . . . . . . . 1 . 1 . . 1 . . . . . . . . . Load Schematic 2 | . . . . . . . . . . . . . 1 . . 1 . . . . . . . . . Build 1 | . . . . . . . . . . . . . 1 . . . . . . . . . . . . Repair Station Hacks 25 | . 2 9 . . . 2 . 7 3 . . . 1 . . 1 . . . . . . . . . Scan Component 15 | . 1 5 . . . 1 . 4 2 . . . 1 . . 1 . . . . . . . . . Repair 10 | . 1 4 . . . 1 . 3 1 . . . . . . . . . . . . . . . . Recycling Unit Hacks 1 | . 1 . . . . . . . . . . . . . . . . . . . . . . . . Retrieve Components 1 | . 1 . . . . . . . . . . . . . . . . . . . . . . . . Scanalyzer 28 | . . 21 . . . 2 . . 2 . 2 . 1 . . . . . . . . . . . . Insert Component 13 | . . 9 . . . 1 . . 1 . 1 . 1 . . . . . . . . . . . . Analyze 15 | . . 12 . . . 1 . . 1 . 1 . . . . . . . . . . . . . . Garrison Access Hacks 3 | . . . . . . 1 . . 1 . . . 1 . . . . . . . . . . . . Unlock Access 3 | . . . . . . 1 . . 1 . . . 1 . . . . . . . . . . . . Unauthorized Hacks 24 | . 4 4 . . . 1 . 2 6 . . . 4 . . 2 . . . . 1 . . . . Terminals 24 | . 4 4 . . . 1 . 2 6 . . . 4 . . 2 . . . . 1 . . . . Assimilate 3 | . 1 . . . . . . . 2 . . . . . . . . . . . . . . . . Botnet 18 | . 2 3 . . . 1 . 2 4 . . . 3 . . 2 . . . . 1 . . . . Operators 3 | . 1 1 . . . . . . . . . . 1 . . . . . . . . . . . . Fabricators . | . . . . . . . . . . . . . . . . . . . . . . . . . . Repair Stations . | . . . . . . . . . . . . . . . . . . . . . . . . . . Recycling Units . | . . . . . . . . . . . . . . . . . . . . . . . . . . Scanalyzers . | . . . . . . . . . . . . . . . . . . . . . . . . . . Garrison Access . | . . . . . . . . . . . . . . . . . . . . . . . . . . Data Cores Recovered 1 | . . 1 . . . . . . . . . . . . . . . . . . . . . . . Used . | . . . . . . . . . . . . . . . . . . . . . . . . . . Hacking Detections 71 | . 7 14 . . . 3 3 8 10 1 2 . 12 . . 9 . . . . 2 . . . . Full Trace Events 8 | . . 3 . . . . . . 1 . . . 2 . . . . . . . 2 . . . . Feedback Events . | . . . . . . . . . . . . . . . . . . . . . . . . . . Feedback Blocked . | . . . . . . . . . . . . . . . . . . . . . . . . . . Robot Schematics Acquired . | . . . . . . . . . . . . . . . . . . . . . . . . . . Robots Built . | . . . . . . . . . . . . . . . . . . . . . . . . . . Authchips . | . . . . . . . . . . . . . . . . . . . . . . . . . . Time . | . . . . . . . . . . . . . . . . . . . . . . . . . . Total Robot Build Rating . | . . . . . . . . . . . . . . . . . . . . . . . . . . Part Schematics Acquired 12 | . 1 8 . . . 1 . . 1 . 1 . . . . . . . . . . . . . . Parts Built 2 | . . . . . . . . . . . . . 2 . . . . . . . . . . . . Authchips . | . . . . . . . . . . . . . . . . . . . . . . . . . . Time 117 | . . . . . . . . . . . . . 117 . . . . . . . . . . . . Total Part Build Rating 14 | . . . . . . . . . . . . . 14 . . . . . . . . . . . . Parts Repaired 9 | . 1 4 . . . 1 . 3 . . . . . . . . . . . . . . . . . Time 448 | . 26 184 . . . 38 . 156 44 . . . . . . . . . . . . . . . . Parts Recycled . | . . . . . . . . . . . . . . . . . . . . . . . . . . Recycled Matter . | . . . . . . . . . . . . . . . . . . . . . . . . . . Retrieved Matter . | . . . . . . . . . . . . . . . . . . . . . . . . . . Retrieved Components 9 | . 9 . . . . . . . . . . . . . . . . . . . . . . . . Parts Scanalyzed 12 | . . 8 . . . 1 . . 1 . 1 . 1 . . . . . . . . . . . . Part Schematics Acquired 11 | . . 8 . . . 1 . . 1 . 1 . . . . . . . . . . . . . . Parts Damaged 1 | . . 1 . . . . . . . . . . . . . . . . . . . . . . . Bothacking | -11 -10 -9 -9 -9 -8 -8 -8 -8 -7 -7 -7 -7 -6 -6 -6 -5 -5 -5 -5 -4 -4 -4 -4 -3 -3 ------------ Run | Yrd Mat Mat Min Exi Min Mat Gar Mat Fac Gar Fac DSF Fac Low Low Fac Upp Upp War Pro Fac Upp Upp Res Arm Used RIF Installer . | . . . . . . . . . . . . . . . . . . . . . . . . . . Robots Hacked . | . . . . . . . . . . . . . . . . . . . . . . . . . . Non-combat . | . . . . . . . . . . . . . . . . . . . . . . . . . . Combat . | . . . . . . . . . . . . . . . . . . . . . . . . . . Robot Hacks Applied . | . . . . . . . . . . . . . . . . . . . . . . . . . . Relay Couplers Released 34 | . . . . . . . 16 3 . 14 . . . . . . . . . . 1 . . . . Machine Destruction 34 | . . . . . . . 16 3 . 14 . . . . . . . . . . 1 . . . . Fabnet Peak Effective % . | . . . . . . . . . . . . . . . . . . . . . . . . . . Robots Rewired 7 | . . . . . . . 1 . . . . . . . . . . 1 5 . . . . . . Allies Hacked 1 | . . . . . . . . . . . . . . . . . . . . 1 . . . . . Hacks Repelled . | . . . . . . . . . . . . . . . . . . . . . . . . . . Allies | -11 -10 -9 -9 -9 -8 -8 -8 -8 -7 -7 -7 -7 -6 -6 -6 -5 -5 -5 -5 -4 -4 -4 -4 -3 -3 -------- Run | Yrd Mat Mat Min Exi Min Mat Gar Mat Fac Gar Fac DSF Fac Low Low Fac Upp Upp War Pro Fac Upp Upp Res Arm Total Allies 10 | . 1 . . . . . 3 . . . . . . . . . . 1 5 . . . . . . Largest Group 6 | . 1 1 . . . . 2 1 . . . . . . . . . 1 6 1 . . . . . Highest-Rated Group 315 | . 10 10 . . . . 56 18 . . . . . . . . . 49 315 64 . . . . . Highest-Rated Ally 64 | . 10 10 . . . . 31 18 . . . . . . . . . 49 64 64 . . . . . Initial Warlord ECA Mod 328 | . . . . . . . . 8 7 7 15 15 24 24 24 23 21 21 21 20 20 20 20 19 19 Warlord Squad Rendezvous 2 | . . . . . . . . . . . . . . . . 2 . . . . . . . . . Infantry 1 | . . . . . . . . . . . . . . . . 1 . . . . . . . . . Muscle 1 | . . . . . . . . . . . . . . . . 1 . . . . . . . . . Total Orders 14 | . . . . . . . . . . . . . . 7 1 . . 1 3 2 . . . . . FOLLOW 1 | . . . . . . . . . . . . . . 1 . . . . . . . . . . . GUARD 2 | . . . . . . . . . . . . . . . . . . . 1 1 . . . . . AID 2 | . . . . . . . . . . . . . . . . . . . 1 1 . . . . . EXPLORE 6 | . . . . . . . . . . . . . . 5 1 . . . . . . . . . . RETURN 3 | . . . . . . . . . . . . . . 1 . . . 1 1 . . . . . . Ally Attacks 44 | . . . . . . . 14 5 . . . . . . . . . . 25 . . . . . . Total Damage 1280 | . . . . . . . 301 162 . . . . . . . . . . 817 . . . . . . Kills 10 | . . . . . . . 3 . . . . . . . . . . . 7 . . . . . . Allies Corrupted 2 | . . . . . . . . . . . . . . . . . . . 2 . . . . . . Allies Melted . | . . . . . . . . . . . . . . . . . . . . . . . . . . Intel | -11 -10 -9 -9 -9 -8 -8 -8 -8 -7 -7 -7 -7 -6 -6 -6 -5 -5 -5 -5 -4 -4 -4 -4 -3 -3 ------- Run | Yrd Mat Mat Min Exi Min Mat Gar Mat Fac Gar Fac DSF Fac Low Low Fac Upp Upp War Pro Fac Upp Upp Res Arm Active Infowar (turns) 16263 | 62 1364 1569 322 538 61 653 3 1994 2107 311 424 185 1763 . . 1777 7 . 1 . 1099 1141 247 373 262 Optics 1 | . . . . . . . . . . . . . . . . . . . 1 . . . . . . Structural 12895 | . . 906 . . . 653 3 1994 2089 68 424 185 1725 . . 1719 7 . . . 1099 1141 247 373 262 Seismic 3735 | 62 1364 1388 322 538 61 . . . . . . . . . . . . . . . . . . . . T.N.C. 2 | . . . . . . . . 2 . . . . . . . . . . . . . . . . . Jamming 2339 | . . . . . . . . . 765 294 . . 38 . . 234 2 . . . 485 . . 295 226 Robot Analysis Total 1 | . . 1 . . . . . . . . . . . . . . . . . . . . . . . Derelict Logs Recovered 9 | . . . 1 . . . . . . . . . . 2 2 . 1 1 . . . 1 1 . . Drone Launches 9 | . . . . . . . . . . . . . . 2 1 . . 3 3 . . . . . . Drone Recoveries 7 | . . . . . . . . . . . . . . 1 . . . 3 3 . . . . . . Exploration | -11 -10 -9 -9 -9 -8 -8 -8 -8 -7 -7 -7 -7 -6 -6 -6 -5 -5 -5 -5 -4 -4 -4 -4 -3 -3 ------------- Run | Yrd Mat Mat Min Exi Min Mat Gar Mat Fac Gar Fac DSF Fac Low Low Fac Upp Upp War Pro Fac Upp Upp Res Arm Turns Passed 31476 | 128 2479 2743 583 539 431 690 1389 2156 2107 2125 451 704 2213 1809 783 2068 1274 703 2016 924 1106 1141 247 373 294 Spaces Moved 16961 | 68 1314 1324 435 426 319 360 818 943 1187 1056 223 369 1068 1171 463 1134 950 394 1346 429 455 362 73 196 78 Core 16 | 9 . . . . . . . . . . . . . . . . . . . 7 . . . . . Treads 1837 | 59 884 . . . . . . . . . . . . . . . . . . . 185 362 73 196 78 Legs 6 | . . . . . . . . . . . . . . . . . . . . . 6 . . . . Wheels 15102 | . 430 1324 435 426 319 360 818 943 1187 1056 223 369 1068 1171 463 1134 950 394 1346 422 264 . . . . Hover . | . . . . . . . . . . . . . . . . . . . . . . . . . . Flight . | . . . . . . . . . . . . . . . . . . . . . . . . . . Fastest Speed 50 | 50 95 110 125 125 125 125 125 116 115 115 170 130 115 115 130 130 130 130 130 130 145 246 330 161 161 Average Speed 142 | 146 160 130 125 125 125 125 125 134 115 164 170 140 129 127 130 130 130 130 130 179 203 303 330 165 164 Slowest Speed 1900 | 160 185 215 125 125 125 125 155 245 150 170 170 170 130 130 130 175 130 130 130 1900 545 330 330 410 165 Overloaded Moves . | . . . . . . . . . . . . . . . . . . . . . . . . . . Propulsion Burnouts . | . . . . . . . . . . . . . . . . . . . . . . . . . . Robots Hopped . | . . . . . . . . . . . . . . . . . . . . . . . . . . Potential Cave-ins 18 | . . . . . . 9 . 6 . . . . . 3 . . . . . . . . . . . Cave-ins Triggered . | . . . . . . . . . . . . . . . . . . . . . . . . . . Exploration Rate (%) 56 | 4 97 94 86 77 75 32 82 76 30 78 6 94 28 98 83 32 85 59 94 66 13 58 15 4 5 Regions Visited 25 Branch Regions 12 Pre-discovered Areas 3 | . . . . 1 . . . . . . . . . 2 . . . . . . . . . . . Known Exits Taken 9 | . . . . . . 1 . 1 1 . 1 . 1 1 . 1 . . . 1 . . . 1 . Unknown Exits Taken 13 | 1 1 1 1 1 1 . . . . . . . . . 1 . 1 1 1 . 1 1 1 . . Scrap Searched 15 | . . . 1 . 1 . . . . . . . . 2 2 . 2 2 . 2 . 2 1 . . Spaces Dug 227 | . 5 47 . . . 23 . 40 15 12 5 . 21 . 24 25 . . . . 3 . . 3 4 Terrain Destroyed 824 | . 21 106 . . 4 24 . 113 17 34 5 15 21 58 24 45 71 52 1 94 41 7 . 3 68 Melee 47 | . . . . . . . . . 15 . 4 . 21 . . . . . . . . . . 3 4 Projectile 257 | . 5 98 . . 4 24 . 64 2 . 1 . . . . 32 . 12 1 7 . 7 . . . AOE 520 | . 16 8 . . . . . 49 . 34 . 15 . 58 24 13 71 40 . 87 41 . . . 64 Terrain Rammed . | . . . . . . . . . . . . . . . . . . . . . . . . . . Walls Destroyed . | . . . . . . . . . . . . . . . . . . . . . . . . . . Machines Disabled . | . . . . . . . . . . . . . . . . . . . . . . . . . . Actions | -11 -10 -9 -9 -9 -8 -8 -8 -8 -7 -7 -7 -7 -6 -6 -6 -5 -5 -5 -5 -4 -4 -4 -4 -3 -3 --------- Run | Yrd Mat Mat Min Exi Min Mat Gar Mat Fac Gar Fac DSF Fac Low Low Fac Upp Upp War Pro Fac Upp Upp Res Arm Total 22755 | 83 1558 2003 474 433 342 571 1065 1653 1853 1364 292 504 1761 1418 623 1622 972 559 1610 518 578 380 76 239 204 Wait 3756 | . 88 344 21 . 5 168 78 527 569 167 37 57 546 200 140 337 . 141 167 20 41 . . 2 101 Move 16935 | 67 1313 1323 434 425 318 360 817 942 1186 1053 222 368 1067 1170 462 1133 949 393 1345 428 454 361 72 195 78 Hop . | . . . . . . . . . . . . . . . . . . . . . . . . . . Pick Up 277 | 4 44 47 3 3 2 7 17 20 16 11 9 11 15 4 2 25 3 2 7 5 15 1 1 2 1 Fast Attach 66 | 7 1 4 . . . 2 . 8 2 3 1 4 6 . 1 1 . . 5 6 8 1 1 5 . Attach 100 | . 6 8 1 . 1 1 3 14 7 3 . . 5 3 1 12 . . 3 9 9 4 . 9 1 Detach 14 | . . . . . . . . 2 . 1 . . . . 1 . . . 2 1 6 . . 1 . Swap 311 | . 18 62 3 2 6 7 20 22 17 20 5 10 28 9 4 35 11 4 15 7 2 . . 4 . Drop 279 | . 22 50 3 3 5 7 17 16 11 15 11 20 21 1 2 23 . 2 18 2 12 . . 16 2 Fire 768 | 5 66 165 . . 5 19 68 96 15 46 3 28 41 31 10 56 9 14 2 40 30 13 2 . 4 Melee 70 | . . . . . . . . . 20 . 4 . 24 . . . . . . . . . . 5 17 Ram . | . . . . . . . . . . . . . . . . . . . . . . . . . . Kick . | . . . . . . . . . . . . . . . . . . . . . . . . . . Crush 1 | . . . . . . . . . . . . . . . . . . . . . 1 . . . . Escape Stasis 86 | . . . 8 . . . 22 . 8 40 . . 8 . . . . . . . . . . . . Rewire 60 | . . . . . . . 11 . . . . . . . . . . 3 46 . . . . . . Trap 32 | . . . 1 . . . 12 6 2 5 . 6 . . . . . . . . . . . . . Miscellaneous . | . . . . . . . . . . . . . . . . . . . . . . . . . . Route ------- -11/Scrapyard -10/Materials (discovered 4 exits: *Mat x3 / [*Min]) -9/Materials (discovered 5 exits: *Mat x3 / [*Min x2]) -9/Mines (discovered 2 exits: *Mat / *Exi) -9/Exiles -8/Mines -8/Materials -8/Garrison (discovered 4 exits: *Mat x4) -8/Materials (discovered 3 exits: *Fac x3) -7/Factory (discovered 3 exits: *Fac / Low / Gar) -7/Garrison (discovered 3 exits: *Fac x3) -7/Factory (discovered 2 exits: *Fac / DSF) -7/DSF -6/Factory (discovered 3 exits: *Low x2 / Gar) -6/Lower Caves -6/Lower Caves (discovered 2 exits: *Fac / *Zio) -5/Factory (discovered 3 exits: *Fac / *Upp / [*Ext]) -5/Upper Caves -5/Upper Caves (discovered 2 exits: *Fac / *War) -5/Warlord -4/Proximity Caves -4/Factory -4/Upper Caves -4/Upper Caves -3/Research (discovered 2 exits: *Arm / Tes) -3/Armory History --------- Turn | Location | Event 6 | -11/Scrapyard | Discovered new exit (range 16) 129 | -11/Scrapyard | Entered Materials 301 | -10/Materials | Build established: Mutant 452 | -10/Materials | Discovered new exit (range 16) 645 | -10/Materials | Discovered new exit (range 11) 1558 | -10/Materials | Discovered new exit (range 8) 1766 | -10/Materials | Discovered new exit (range 16) 2050 | -10/Materials | Repaired Ion Engine 2161 | -10/Materials | Build established: Hauler-Mutant 2608 | -10/Materials | Entered another Materials area 2608 | -9/Materials | Accompanied by 1 ally 2608 | -9/Materials | Evolved 2 slots: Propulsion x1, Utility x1 3567 | -9/Materials | Core integrity fell below 50% 3584 | -9/Materials | Discovered new exit (range 8) 3720 | -9/Materials | Build established: Scavenger-Mutant 4003 | -9/Materials | Repaired Adv. Beam Cannon 4056 | -9/Materials | Repaired Adv. Beam Cannon 4092 | -9/Materials | Discovered new exit (range 15) 4393 | -9/Materials | Discovered new exit (range 15) 4527 | -9/Materials | Discovered new exit (range 15) 5148 | -9/Materials | Repaired Broken Rocket Launcher 5187 | -9/Materials | Repaired Hvy. Particle Cannon 5318 | -9/Materials | Discovered new exit (range 16) 5351 | -9/Materials | Entered Mines 5477 | -9/Mines | Found a hidden stash of uninstalled traps 5592 | -9/Mines | A weapon hastily lodged in a ceiling crevice suddenly fell to the ground 5694 | -9/Mines | Received a Rocket Launcher from a helpful Derelict 5718 | -9/Mines | Discovered new exit (range 13) 5792 | -9/Mines | Build established: Mutant 5801 | -9/Mines | Deemed a non-threat by the Exiles lab entrance 5802 | -9/Mines | Discovered new exit (range 5) 5934 | -9/Mines | Entered Exiles 5967 | -9/Exiles | Met 8R-AWN 5987 | -9/Exiles | Met EX-HEX 6026 | -9/Exiles | Met EX-BIN 6043 | -9/Exiles | Aligned with FarCom system 6045 | -9/Exiles | Given EX-Vault access code 6075 | -9/Exiles | Opened EX-Vault 6088 | -9/Exiles | Found PSU Rigger 6116 | -9/Exiles | Warned to stay clear of 0b10 Research branches 6151 | -9/Exiles | Met EX-DEC 6190 | -9/Exiles | Visited The Gauntlet 6418 | -9/Exiles | Learned location of Zion (-6) 6458 | -9/Exiles | Discovered new exit (range 14) 6473 | -9/Exiles | Left Exiles lab with PSU Rigger 6473 | -9/Exiles | Entered Mines 6895 | -8/Mines | Discovered new exit (range 8) 6904 | -8/Mines | Entered Materials 6904 | -8/Materials | Evolved 2 slots: Utility x1, Weapon x1 7214 | -8/Materials | Build established: Scavenger-Skirmisher 7558 | -8/Materials | Repaired Imp. Heat Sink 7594 | -8/Materials | Identified exit to Garrison 7594 | -8/Materials | Entered Garrison 7831 | -8/Garrison | Discovered new exit (range 74) 7831 | -8/Garrison | Discovered new exit (range 65) 7831 | -8/Garrison | Discovered new exit (range 66) 7831 | -8/Garrison | Discovered new exit (range 85) 7862 | -8/Garrison | Garrison Relay disabled 7948 | -8/Garrison | Triggered checkpoint 7957 | -8/Garrison | Triggered checkpoint 8114 | -8/Garrison | Triggered checkpoint 8242 | -8/Garrison | Garrison Relay disabled 8317 | -8/Garrison | Triggered checkpoint 8442 | -8/Garrison | Rescued a captive Derelict 8448 | -8/Garrison | Rescued a captive Derelict 8486 | -8/Garrison | Triggered checkpoint 8549 | -8/Garrison | Garrison Relay disabled 8840 | -8/Garrison | Triggered checkpoint 8883 | -8/Garrison | Garrison Relay disabled 8972 | -8/Garrison | Triggered checkpoint 8983 | -8/Garrison | Entered Materials 8983 | -8/Materials | Accompanied by 1 ally 9144 | -8/Materials | Repaired Plasma Cannon 9207 | -8/Materials | Repaired Broken Plasma Cannon 9356 | -8/Materials | Discovered new exit (range 7) 9435 | -8/Materials | Repaired Cld. Ion Engine 10019 | -8/Materials | Garrison activated, responded to threat 10041 | -8/Materials | Lost 4 parts (2n2w) 10123 | -8/Materials | Discovered new exit (range 16) 10138 | -8/Materials | Destroyed 9 combat bots 10306 | -8/Materials | Identified exit to Factory 10706 | -8/Materials | Core integrity fell below 50% 10752 | -8/Materials | Lost 4 parts (2n1u1w) 11025 | -8/Materials | Build established: Scavenger-Mutant 11096 | -8/Materials | Discovered exit to Factory (range 8) 11139 | -8/Materials | Entered Factory 11139 | -7/Factory | Evolved 2 slots: Propulsion x1, Utility x1 11140 | -7/Factory | Identified exit to Lower Caves 11434 | -7/Factory | Build established: Scavenger-Skirmisher 11889 | -7/Factory | Build established: Scavenger-Mutant 12279 | -7/Factory | Discovered new exit (range 15) 12730 | -7/Factory | Build established: Scavenger-Skirmisher 12988 | -7/Factory | Identified exit to Factory 13189 | -7/Factory | Identified exit to Garrison 13246 | -7/Factory | Entered Garrison 13283 | -7/Garrison | Triggered checkpoint 13370 | -7/Garrison | Garrison Relay disabled 13437 | -7/Garrison | Triggered checkpoint 13470 | -7/Garrison | Triggered checkpoint 13527 | -7/Garrison | Destroyed 11 combat bots 13664 | -7/Garrison | Triggered checkpoint 13782 | -7/Garrison | Discovered new exit (range 11) 13826 | -7/Garrison | Garrison Relay disabled 14148 | -7/Garrison | Discovered new exit (range 14) 14411 | -7/Garrison | Triggered checkpoint 14526 | -7/Garrison | Discovered new exit (range 14) 14586 | -7/Garrison | Triggered checkpoint 14690 | -7/Garrison | Garrison Relay disabled 14878 | -7/Garrison | Phase Generator disabled 14898 | -7/Garrison | Attempted to access garrison exit controls, blocked by remote lockdown 15172 | -7/Garrison | Attempted to access garrison exit controls, blocked by remote lockdown 15371 | -7/Garrison | Entered Factory 15595 | -7/Factory | Discovered exit to Factory (range 10) 15822 | -7/Factory | Identified exit to DSF 15822 | -7/Factory | Entered DSF 15852 | -7/DSF | Additional patrols routed to DSF 15962 | -7/DSF | Discovered exit to Factory (range 15) 16382 | -7/DSF | Build established: Skirmisher 16416 | -7/DSF | Sterilization system engaged 16436 | -7/DSF | Ambient heat levels rising (+10) 16451 | -7/DSF | Ambient heat levels rising (+10) 16466 | -7/DSF | Ambient heat levels rising (+10) 16481 | -7/DSF | Ambient heat levels rising (+10) 16496 | -7/DSF | Ambient heat levels rising (+10) 16511 | -7/DSF | Ambient heat levels rising (+10) 16526 | -7/DSF | Ambient heat levels rising (+10) 16526 | -7/DSF | Entered Factory 16526 | -6/Factory | Evolved 2 slots: Utility x2 16792 | -6/Factory | Identified exit to Lower Caves 17084 | -6/Factory | Build established: Mutant 18177 | -6/Factory | Identified exit to Garrison 18707 | -6/Factory | Fabricated Graphene Brace (x2) 18739 | -6/Factory | Entered Lower Caves 18750 | -6/Lower Caves | Met a Warlord Commander 18751 | -6/Lower Caves | Learned location of Warlord (-5) 18752 | -6/Lower Caves | Warlord Commander delivered Encrypted Comm Array 18759 | -6/Lower Caves | Found Encrypted Comm Array 19011 | -6/Lower Caves | Destroyed 7 combat bots 19015 | -6/Lower Caves | Build established: Tank 19136 | -6/Lower Caves | Identified exit to Lower Caves 19464 | -6/Lower Caves | Spotted B-75 Beast 19535 | -6/Lower Caves | Destroyed B-75 Beast 20534 | -6/Lower Caves | Encountered a Warlord checkpoint 20548 | -6/Lower Caves | Entered another Lower Caves area 20548 | -6/Lower Caves | Discovered new exit (range 8) 20659 | -6/Lower Caves | Encountered a Warlord checkpoint 20662 | -6/Lower Caves | Identified exit to Zion 21014 | -6/Lower Caves | Learned Factory stockpile data 21331 | -6/Lower Caves | Entered Factory 21331 | -5/Factory | Evolved 2 slots: Utility x1, Weapon x1 21634 | -5/Factory | Build established: Skirmisher 21861 | -5/Factory | Discovered new exit (range 5) 22175 | -5/Factory | Found Prototype Launcher 22175 | -5/Factory | Identified Mni. Smartbomb Launcher 22299 | -5/Factory | Discovered new exit (range 2) 22473 | -5/Factory | Identified exit to Factory 22604 | -5/Factory | Joined by Warlord Muscle squad 22617 | -5/Factory | P-70 Sage assimilated allied FH-JR0(l) 22888 | -5/Factory | Lost 4 parts (2n1u1w) 23137 | -5/Factory | Joined by Warlord Infantry squad 23391 | -5/Factory | Discovered new exit (range 5) 23399 | -5/Factory | Identified exit to Upper Caves 23399 | -5/Factory | Entered Upper Caves 23418 | -5/Upper Caves | Learned Factory interactive machine intel 23422 | -5/Upper Caves | Lost 3 allies 23693 | -5/Upper Caves | Build established: Gunner 24610 | -5/Upper Caves | Discovered new exit (range 15) 24650 | -5/Upper Caves | Spotted B-75 Beast 24673 | -5/Upper Caves | Entered another Upper Caves area 24699 | -5/Upper Caves | Learned Factory terminal intel 24767 | -5/Upper Caves | Discovered exit to Factory (range 14) 25033 | -5/Upper Caves | Attracted the attention of an 0b10 outpost 25223 | -5/Upper Caves | Discovered new exit (range 13) 25376 | -5/Upper Caves | Entered Warlord 25376 | -5/Warlord | Accompanied by 1 ally 25461 | -5/Warlord | System corruption reached 10% 25481 | -5/Warlord | System corruption cleaned by Quarantine Array 25629 | -5/Warlord | Opened side exit 26223 | -5/Warlord | Build established: Commander-Gunner 26413 | -5/Warlord | Found Signal Generator 26471 | -5/Warlord | Met Warlord 26476 | -5/Warlord | Warlord's base attacked by MAIN.C 26648 | -5/Warlord | Lost 3 allies 26826 | -5/Warlord | Warlord forces counterattacked 26834 | -5/Warlord | Found Prototype Energy Gun 26834 | -5/Warlord | Identified Vortex Rail 26839 | -5/Warlord | Found Prototype Energy Cannon 26839 | -5/Warlord | Identified Vortex Driver 26930 | -5/Warlord | Found Prototype Energy Gun 26970 | -5/Warlord | Build established: Gunner 27108 | -5/Warlord | Found Prototype Device 27108 | -5/Warlord | Identified Exp. Focal Shield 27113 | -5/Warlord | Found Prototype Processor 27113 | -5/Warlord | Identified Spectral Analyzer 27124 | -5/Warlord | Found Prototype Reactor 27151 | -5/Warlord | Warlord base infiltrated, sounded retreat 27342 | -5/Warlord | Discovered new exit (range 14) 27343 | -5/Warlord | Spotted Striker 27358 | -5/Warlord | Destroyed Striker 27384 | -5/Warlord | Lost 4 allies 27392 | -5/Warlord | Entered Proximity Caves 27392 | -4/Proximity Caves | Accompanied by 1 ally 27459 | -4/Proximity Caves | Ambushed by research squad 27746 | -4/Proximity Caves | Destroyed 9 combat bots 27754 | -4/Proximity Caves | Lost 9 parts (1p2n3u3w) 27988 | -4/Proximity Caves | Build established: Mutant 27993 | -4/Proximity Caves | Attracted the attention of an 0b10 checkpoint 28000 | -4/Proximity Caves | Core integrity fell below 50% 28305 | -4/Proximity Caves | Discovered exit to Factory (range 7) 28316 | -4/Proximity Caves | Entered Factory 28316 | -4/Factory | Evolved 2 slots: Power x1, Weapon x1 28317 | -4/Factory | Loaded intel: 54 interactive machine locations 28317 | -4/Factory | Identified Vortex Chain Reactor 28318 | -4/Factory | Loaded intel: 26 terminal locations 28319 | -4/Factory | Identified Plasma Storm 28618 | -4/Factory | Build established: Infiltrator-Skirmisher 28886 | -4/Factory | Destroyed 12 combat bots 28892 | -4/Factory | Lost 4 parts (1n3u) 29066 | -4/Factory | First assault squad dispatched 29072 | -4/Factory | Discovered new exit (range 7) 29341 | -4/Factory | Build established: Scavenger-Skirmisher 29422 | -4/Factory | Entered Upper Caves 29691 | -4/Upper Caves | Build established: Scavenger-Tank 29743 | -4/Upper Caves | Lost 3 parts (1n2u) 30079 | -4/Upper Caves | Build established: Scavenger-Mutant 30536 | -4/Upper Caves | Discovered new exit (range 9) 30563 | -4/Upper Caves | Entered another Upper Caves area 30661 | -4/Upper Caves | Attracted the attention of an 0b10 checkpoint 30708 | -4/Upper Caves | Learned Research non-interactive machine intel 30793 | -4/Upper Caves | Discovered new exit (range 6) 30810 | -4/Upper Caves | Entered Research 30810 | -3/Research | Evolved 2 slots: Propulsion x2 30811 | -3/Research | Identified exit to Testing 30812 | -3/Research | Loaded intel: 81 non-interactive machine locations 30857 | -3/Research | Discovered new exit (range 10) 30953 | -3/Research | Identified exit to Armory 31095 | -3/Research | Build established: Infiltrator-Gladiator 31183 | -3/Research | Entered Armory 31216 | -3/Armory | Found Quantum Capacitor 31431 | -3/Armory | System corruption reached 10% 31468 | -3/Armory | Core integrity fell below 50% 31474 | -3/Armory | Core integrity fell below 20% 31477 | -3/Armory | Destroyed by L-61 Swordsman with Power Sword Last Messages --------------- 31458_ Arm. Medium Treads destroyed. 31460_ Adv. Medium Treads destroyed. 31460_ Penetrated by Slug. 31460_ Slug penetrates Wall. 31461_ Neutrino Core destroyed. 31461_ Penetrated by Slug. 31462_ Lgt. Antimatter Reactor destroyed. 31463_ Penetrated by Slug. 31463_ Slug penetrates Wall. 31464_ PSU Rigger destroyed. 31466_ Penetrated by Slug. 31466_ Slug penetrates Wall. 31467_ The unstable cave ceiling collapses. 31469_ Imp. Cryofiber Web destroyed. 31470_ P-80 Master resets Y-72 Warden, system corruption cleaned. 31473_ Penetrated by Slug. 31473_ Adv. Coolant Injector destroyed. 31477_ YZW>HFXHS1GKDN>LF4 R 31477_ Penetrated by Slug. Map ----- +----------------------------------------------------+ | ??????????????????? ?????????????? | | ?????????????????## ?????????????? | | ?????????????????## ??????######?? | | ?????????????????## ??????######?? | | ?????????????????## ??????## ##?? | | ?????????????????## ##????## ##?? | | ?????????????????## ##????## ##?? | | ?????????????????## ##????## ##?? | | ?????????????????## ##????## ##?? | | ?????????????????## ##????## ##?? | | ????????????? ## ######## ##?? | | ?????????????+##### ######## ##?? | | ??????????? ##?? | | ??????????? ##?? | | ????????????????+###;##+##;## ##?? | | ???????????????? #### !] ## ##?? | | ??????????????????###! [ !## ##?? | | ???????????????????## [!!## ##?? | | ???????????????????## !!!## ##?? | | ???????????????????## ## ##?? | | ????????############# ##?? | | ????## ?############### ##?? | | ????## g*==* ###? | | ????## p[%![Y[ # | | ????## H############### gl # | | ????# ############# x=@ !g | | ????????????????????## * = | | ????????????????????## " % Y | | ????????????????????## " "= # | | ???????????????????? # """ "" | | ????????????????????## """ """ | | ????????????????????## """ """ # | | ????????????????????## """ """ # | | ????????????????????## # | | ????????????????????## # | | ????????????????????## # | | ????????????????????## # | | ????????????????????############### | | ????????????????????############### | | ??????????????????????????????????? | | ??????????????????????????????????? | | ??????????????????????????????????? | | ??????????????????????????????????? | | ??????????????????????????????????? | | ??????????????????????????????????? | | ??????????????????????????????????? | | ??????????????????????????????????? | | ??????????????????????????????????? | | ??????????????????????????????????? | | ??????????????????????????????????? | +----------------------------------------------------+ Best States ------------- Heat Dissipation 144 Coolant Potential 100 Energy Generation 70 Energy Capacity 700 Matter Stores 300 Matter Capacity 300 Sight Range 16 Terrain Scan Density 10 Jamming Range 14 Power Amplification 30 Base Temperature (-) 150 EM Shielding 3 Armor Coverage 825 Resistance: KI 30 Resistance: TH 30 Resistance: EM 25 Power Shielding 66 Evasion (%) 41 Targeting Accuracy 8 Melee Accuracy 8 Target Analysis 6 Recoil Reduction 5 Particle Charging 20 Offensive Hacking 10 Defensive Hacking 14 Item Schematics ----------------- Hcp. Storage Unit | -10/Materials | Hacked Hvy. Particle Cannon | -9/Materials | Scanalyzed Imp. Heat Sink | -9/Materials | Scanalyzed Hrd. Light Armor Plating | -9/Materials | Scanalyzed Cld. Ion Engine | -9/Materials | Scanalyzed Seismic Detector | -9/Materials | Scanalyzed Structural Scanner | -9/Materials | Scanalyzed Imp. Sensor Array | -9/Materials | Scanalyzed Rocket Launcher | -9/Materials | Scanalyzed Plasma Cannon | -8/Materials | Scanalyzed Graphene Brace | -7/Factory | Scanalyzed Cryofiber Web | -7/Factory | Scanalyzed Robot Schematics ------------------ None Fabricated ------------ Graphene Brace | x2 | -6/Factory Repaired ---------- Ion Engine | 28% | -10/Materials Adv. Beam Cannon | 1% | -9/Materials Adv. Beam Cannon | 49% | -9/Materials Rocket Launcher | 99% | -9/Materials | Broken Hvy. Particle Cannon | 38% | -9/Materials Imp. Heat Sink | 52% | -8/Materials Plasma Cannon | 51% | -8/Materials Plasma Cannon | 70% | -8/Materials | Broken Cld. Ion Engine | 40% | -8/Materials Alien Tech Used ----------------- None Achievements -------------- A Powerful Ally? Charge!!! Packrat Challenges ------------ None Game ------ Seed LargeArmorBasin Manual? 0 Play Time 05:18:30 Cumulative 146.1 hours Start 2025.06.11 @ 16:21:37 End 2025.06.11 @ 22:36:52 Sessions 3 Manual Loads 0 Difficulty Rogue Special Mode None Game No. 99 Rogue 99 Adventurer 0 Explorer 0 Win Type - Total 1 Types 1/0/0/0/0/0/0/0/0/0 Lore% 49 Gallery% 51 Achievement% 46 Wizard Run 0 Options --------- Layout 1 ASCII 0 Keyboard 0 Movement Mouse Keybinds 0 Fullscreen 1 Font 24/Smallcaps Map View 50x35 Zoom Use 0% Tactical HUD 1 Map Filters NONE Filters NONE Steam 1 RUN: aadeec33-beb2-463c-b692-96de3a775ca0